fUST/lending_fUST_20250207
["ID","MTS","AMOUNT","RATE_DAILY","PERIOD"]
[352047220,1738899049092,-9018.23516245,0.00016438,2]
[352047221,1738899049102,-344.42,0.00016438,2]
[352047222,1738899049112,-344.42,0.00016438,2]
[352047223,1738899049121,-344.42,0.00016438,2]
[352047224,1738899049131,-344.42,0.00016438,2]
[352047225,1738899049141,-344.42,0.00016438,2]
[352047226,1738899049150,-344.42,0.00016438,2]
[352047227,1738899049160,-344.42,0.00016438,2]
[352047228,1738899049170,-344.42,0.00016438,2]
[352047229,1738899049179,-344.42,0.00016438,2]
[352047230,1738899049189,-344.42,0.00016438,2]
[352047231,1738899049199,-344.42,0.00016438,2]
[352047232,1738899049209,-344.42,0.00016438,2]
[352047233,1738899049219,-344.42,0.00016438,2]
[352047234,1738899049229,-344.42,0.00016438,2]
[352047235,1738899049239,-344.42,0.00016438,2]
[352047236,1738899049248,-344.42,0.00016438,2]
[352047237,1738899049258,-344.42,0.00016438,2]
[352047238,1738899049267,-344.42,0.00016438,2]
[352047239,1738899049277,-344.42,0.00016438,2]
[352047240,1738899049286,-344.42,0.00016438,2]
[352047241,1738899049295,-344.42,0.00016438,2]
[352047242,1738899049305,-151.0,0.00016438,2]
[352047243,1738899049314,-500.0,0.00016438,5]
[352047244,1738899049324,-500.0,0.00016438,5]
[352047245,1738899049334,-500.0,0.00016438,5]
[352047246,1738899049343,-500.0,0.00016438,5]
[352047247,1738899049353,-500.0,0.00016438,5]
[352047248,1738899049362,-500.0,0.00016438,5]
[352047249,1738899049372,-151.0,0.00016438,2]
[352047250,1738899049381,-500.0,0.00016438,5]
[352047251,1738899049391,-500.0,0.00016438,5]
[352047252,1738899049400,-212.54479673,0.00016438,5]
[352047253,1738899049410,-308.09967,0.00016438,2]
[352047254,1738899049420,-308.09967,0.00016438,2]
[352047255,1738899049429,-584.45,0.00016438,2]
[352047256,1738899049439,-500.0,0.00016438,2]
[352047257,1738899049449,-500.0,0.00016438,2]
[352047258,1738899049459,-500.0,0.00016438,2]
[352047259,1738899049468,-500.0,0.00016438,2]
[352047260,1738899049477,-500.0,0.00016438,2]
[352047261,1738899049487,-500.0,0.00016438,2]
[352047262,1738899049496,-500.0,0.00016438,2]
[352047263,1738899049505,-500.0,0.00016438,2]
[352047264,1738899049515,-500.0,0.00016438,2]
[352047265,1738899049524,-500.0,0.00016438,2]
[352047266,1738899049533,-500.0,0.00016438,2]
[352047267,1738899049543,-500.0,0.00016438,2]
[352047268,1738899049552,-500.0,0.00016438,2]
[352047269,1738899049561,-500.0,0.00016438,2]
[352047270,1738899049571,-500.0,0.00016438,2]
[352047271,1738899049580,-500.0,0.00016438,2]
[352047272,1738899049590,-500.0,0.00016438,2]
[352047273,1738899049600,-500.0,0.00016438,2]
[352047274,1738899049610,-500.0,0.00016438,2]
[352047275,1738899049619,-500.0,0.00016438,2]
[352047276,1738899049629,-500.0,0.00016438,2]
[352047277,1738899049638,-500.0,0.00016438,2]
[352047278,1738899049649,-500.0,0.00016438,2]
[352047279,1738899049663,-500.0,0.00016438,2]
[352047280,1738899049672,-500.0,0.00016438,2]
[352047281,1738899049682,-500.0,0.00016438,2]
[352047282,1738899049694,-500.0,0.00016438,2]
[352047283,1738899049704,-500.0,0.00016438,2]
[352047284,1738899049713,-500.0,0.00016438,2]
[352047285,1738899049723,-500.0,0.00016438,2]
[352047286,1738899049733,-500.0,0.00016438,2]
[352047287,1738899049743,-500.0,0.00016438,2]
[352047288,1738899049753,-500.0,0.00016438,2]
[352047289,1738899049763,-500.0,0.00016438,2]
[352047290,1738899049773,-500.0,0.00016438,2]
[352047291,1738899049782,-500.0,0.00016438,2]
[352047292,1738899049792,-500.0,0.00016438,2]
[352047293,1738899049802,-500.0,0.00016438,2]
[352047294,1738899049812,-500.0,0.00016438,2]
[352047295,1738899049822,-500.0,0.00016438,2]
[352047296,1738899049832,-500.0,0.00016438,2]
[352047297,1738899049843,-500.0,0.00016438,2]
[352047298,1738899049853,-500.0,0.00016438,2]
[352047299,1738899049863,-500.0,0.00016438,2]
[352047300,1738899049872,-289.02919673,0.00016438,2]
[352047301,1738899049882,-500.0,0.00016438,2]
[352047302,1738899049891,-500.0,0.00016438,2]
[352047303,1738899049901,-500.0,0.00016438,2]
[352047304,1738899049911,-500.0,0.00016438,2]
[352047305,1738899049920,-500.0,0.00016438,2]
[352047306,1738899049929,-500.0,0.00016438,2]
[352047307,1738899049939,-500.0,0.00016438,2]
[352047308,1738899049951,-500.0,0.00016438,2]
[352047309,1738899049960,-500.0,0.00016438,2]
[352047310,1738899049969,-500.0,0.00016438,2]
[352047311,1738899049979,-500.0,0.00016438,2]
[352047312,1738899049988,-500.0,0.00016438,2]
[352047313,1738899049997,-500.0,0.00016438,2]
[352047314,1738899050007,-500.0,0.00016438,2]
[352047315,1738899050016,-500.0,0.00016438,2]
[352047316,1738899050025,-500.0,0.00016438,2]
[352047317,1738899050035,-500.0,0.00016438,2]
[352047318,1738899050045,-500.0,0.00016438,2]
[352047319,1738899050054,-500.0,0.00016438,2]
[352047320,1738899050063,-500.0,0.00016438,2]
[352047321,1738899050073,-500.0,0.00016438,2]
[352047322,1738899050082,-500.0,0.00016438,2]
[352047323,1738899050091,-500.0,0.00016438,2]
[352047324,1738899050101,-500.0,0.00016438,2]
[352047325,1738899050110,-500.0,0.00016438,2]
[352047326,1738899050119,-500.0,0.00016438,2]
[352047327,1738899050130,-500.0,0.00016438,2]
[352047328,1738899050140,-327.5,0.00016438,2]
[352047329,1738899050151,-500.0,0.00016438,2]
[352047330,1738899050160,-500.0,0.00016438,2]
[352047331,1738899050169,-500.0,0.00016438,2]
[352047332,1738899050179,-500.0,0.00016438,2]
[352047333,1738899050188,-500.0,0.00016438,2]
[352047334,1738899050199,-500.0,0.00016438,2]
[352047335,1738899050208,-500.0,0.00016438,2]
[352047336,1738899050218,-500.0,0.00016438,2]
[352047337,1738899050228,-500.0,0.00016438,2]
[352047338,1738899050238,-500.0,0.00016438,2]
[352047339,1738899050247,-500.0,0.00016438,2]
[352047340,1738899050258,-500.0,0.00016438,2]
[352047341,1738899050268,-500.0,0.00016438,2]
[352047342,1738899050278,-500.0,0.00016438,2]
[352047343,1738899050288,-499.99999999,0.00016438,2]
[352047344,1738899050297,-174.904199,0.00016438,2]
[352047345,1738899050307,-174.904199,0.00016438,2]
[352047346,1738899050318,-618.8,0.00016438,2]
[352047347,1738899050328,-1000.0,0.00016438,2]
[352047348,1738899050338,-1000.0,0.00016438,2]
[352047349,1738899050348,-1000.0,0.00016438,2]
[352047350,1738899050358,-1003.68873546,0.00016438,2]
[352047351,1738899050368,-500.0,0.00016438,2]
[352047352,1738899050377,-500.0,0.00016438,2]
[352047353,1738899050387,-500.0,0.00016438,2]
[352047354,1738899050396,-500.0,0.00016438,2]
[352047355,1738899050406,-500.0,0.00016438,2]
[352047356,1738899050417,-500.0,0.00016438,2]
[352047357,1738899050426,-500.0,0.00016438,2]
[352047358,1738899050436,-500.0,0.00016438,2]
[352047359,1738899050447,-151.0,0.00016438,2]
[352047360,1738899050456,-500.0,0.00016438,2]
[352047361,1738899050466,-500.0,0.00016438,2]
[352047362,1738899050476,-151.0,0.00016438,2]
[352047363,1738899050486,-537.870803,0.00016438,2]
[352047364,1738899050495,-537.870803,0.00016438,2]
[352047365,1738899050505,-151.0,0.00016438,2]
[352047366,1738899050515,-500.0,0.00016438,3]
[352047367,1738899050524,-500.0,0.00016438,3]
[352047368,1738899050534,-312.86637524,0.00016438,3]
[352047369,1738899050544,-151.0,0.00016438,2]
[352047370,1738899050554,-598.82,0.00016438,2]
[352047371,1738899050563,-151.0,0.00016438,2]
[352047372,1738899050574,-151.0,0.00016438,2]
[352047373,1738899050584,-264.586561,0.00016438,2]
[352047374,1738899050593,-264.586561,0.00016438,2]
[352047375,1738899050603,-151.0,0.00016438,2]
[352047376,1738899050613,-151.0,0.00016438,2]
[352047377,1738899050623,-151.0,0.00016438,2]
[352047378,1738899050632,-151.0,0.00016438,2]
[352047379,1738899050643,-1000.0,0.00016438,7]
[352047380,1738899050653,-1000.0,0.00016438,7]
[352047381,1738899050663,-1000.0,0.00016438,7]
[352047382,1738899050673,-1000.0,0.00016438,7]
[352047383,1738899050683,-632.70740673,0.00016438,7]
[352047384,1738899050693,-293.942547,0.00016438,2]
[352047385,1738899050704,-2544.73,0.00016438,2]
[352047386,1738899050714,-532.44,0.00016438,2]
[352047387,1738899050724,-151.0,0.00016438,2]
[352047388,1738899050735,-151.0,0.00016438,2]
[352047389,1738899050745,-3244.38,0.00016438,2]
[352047390,1738899050768,-694.93,0.00016438,2]
[352047391,1738899050779,-151.0,0.00016438,2]
[352047392,1738899050788,-918.93,0.00016438,2]
[352047393,1738899050798,-500.0,0.00016438,2]
[352047394,1738899050808,-500.0,0.00016438,2]
[352047395,1738899050818,-459.403262,0.00016438,2]
[352047396,1738899050827,-459.403262,0.00016438,2]
[352047397,1738899050837,-459.403262,0.00016438,2]
[352047398,1738899050847,-459.403262,0.00016438,2]
[352047399,1738899050857,-4500.0,0.00016438,2]
[352047400,1738899050866,-3000.0,0.0001644,2]
[352047401,1738899050876,-465.02923183,0.00016447,2]
[352047402,1738899050886,-3000.0,0.0001645,2]
[352047403,1738899050895,-1163.77342583,0.00016455,2]
[352047404,1738899050904,-3000.0,0.0001646,2]
[352047405,1738899050914,-3000.0,0.0001647,2]
[352047406,1738899050924,-483.38994499,0.00016473,2]
[352047407,1738899050933,-382.14362987,0.00016473,2]
[352047408,1738899050943,-500.0,0.00016473,2]
[352047409,1738899050952,-500.0,0.00016473,2]
[352047410,1738899050962,-500.0,0.00016473,2]
[352047411,1738899050972,-500.0,0.00016473,2]
[352047412,1738899050982,-500.06468196,0.00016473,2]
[352047413,1738899050992,-500.0,0.00016473,2]
[352047414,1738899051002,-500.0,0.00016473,2]
[352047415,1738899051012,-500.0,0.00016473,2]
[352047416,1738899051022,-571.56105648,0.00016473,2]
[352047417,1738899051032,-500.0,0.00016473,2]
[352047418,1738899051041,-3000.0,0.0001648,2]
[352047419,1738899051051,-3000.0,0.0001649,2]
[352047420,1738899051060,-28282.0,0.000165,2]
[352047421,1738899051069,-34270.53,0.000165,2]
[352047422,1738899051080,-3000.0,0.000165,2]
[352047423,1738899051089,-6307.07017783,0.000165,2]
[352047424,1738899051099,-3000.0,0.0001651,2]
[352047425,1738899051108,-3000.0,0.0001652,2]
[352047426,1738899051118,-1382.97416019,0.00016522,2]
[352047427,1738899051127,-3000.0,0.0001653,2]
[352047428,1738899051137,-3000.0,0.0001654,2]
[352047429,1738899051146,-3000.0,0.0001655,2]
[352047430,1738899051155,-1163.77342583,0.00016555,2]
[352047431,1738899051166,-500.0,0.00016559,2]
[352047432,1738899051175,-500.0,0.00016559,2]
[352047433,1738899051185,-707.0,0.00016559,2]
[352047434,1738899051195,-3000.0,0.0001656,2]
[352047435,1738899051205,-3000.0,0.0001657,2]
[352047436,1738899051215,-344.42,0.00016575,2]
[352047437,1738899051225,-618.8,0.00016575,2]
[352047438,1738899051235,-598.82,0.00016575,2]
[352047439,1738899051248,-2544.73,0.00016575,2]
[352047440,1738899051258,-532.44,0.00016575,2]
[352047441,1738899051276,-3244.38,0.00016575,2]
[352047442,1738899051285,-694.93,0.00016575,2]
[352047443,1738899051295,-918.93,0.00016575,2]
[352047444,1738899051304,-3740.287619,0.0001658,2]
[352047445,1738899051315,-500.0000001,0.0001658,2]
[352047446,1738899051324,-1163.77342583,0.00016655,2]
[352047447,1738899051334,-630.73164601,0.00016671,2]
[352047448,1738899051343,-155.328664,0.00016679,2]
[352047449,1738899051354,-344.42,0.00016712,2]
[352047450,1738899051363,-618.8,0.00016712,2]
[352047451,1738899051373,-598.82,0.00016712,2]
[352047452,1738899051383,-2544.73,0.00016712,2]
[352047453,1738899051392,-532.44,0.00016712,2]
[352047454,1738899051402,-3244.38,0.00016712,2]
[352047455,1738899051413,-694.93,0.00016712,2]
[352047456,1738899051423,-918.93,0.00016712,2]
[352047457,1738899051435,-1666.02777838,0.00016712,2]
[352047458,1738899051446,-6307.07017783,0.00016733,2]
[352047459,1738899051455,-1163.77342583,0.00016755,2]
[352047460,1738899051466,-46759.42068669,0.000168,2]
[352047461,1738899051475,-151.0,0.000168,2]
[352047462,1738899051485,-151.0,0.000168,2]
[352047463,1738899051494,-151.0,0.000168,2]
[352047464,1738899051504,-308.09967,0.000168,2]
[352047465,1738899051515,-308.09967,0.000168,2]
[352047466,1738899051525,-174.904199,0.000168,2]
[352047467,1738899051535,-174.904199,0.000168,2]
[352047468,1738899051545,-151.0,0.000168,2]
[352047469,1738899051556,-151.0,0.000168,2]
[352047470,1738899051566,-537.870803,0.000168,2]
[352047471,1738899051577,-537.870803,0.000168,2]
[352047472,1738899051587,-151.0,0.000168,2]
[352047473,1738899051598,-151.0,0.000168,2]
[352047474,1738899051607,-459.403262,0.000168,2]
[352047475,1738899051618,-459.403262,0.000168,2]
[352047476,1738899051628,-151.0,0.000168,2]
[352047477,1738899051637,-151.0,0.000168,2]
[352047478,1738899051647,-264.586561,0.000168,2]
[352047479,1738899051660,-264.586561,0.000168,2]
[352047480,1738899051670,-151.0,0.000168,2]
[352047481,1738899051679,-151.0,0.000168,2]
[352047482,1738899051688,-151.0,0.000168,2]
[352047483,1738899051699,-151.0,0.000168,2]
[352047484,1738899051707,-151.0,0.000168,2]
[352047485,1738899051716,-151.0,0.000168,2]
[352047486,1738899051726,-151.0,0.000168,2]
[352047487,1738899051735,-336.0,0.0001683,2]
[352047488,1738899051746,-500.0,0.00016833,2]
[352047489,1738899051755,-898.77735873,0.00016833,2]
[352047490,1738899051765,-707.0,0.00016833,2]
[352047491,1738899051775,-344.44935638,0.00016849,2]
[352047492,1738899051784,-618.82979171,0.00016849,2]
[352047493,1738899051794,-598.96407038,0.00016849,2]
[352047494,1738899051803,-2544.82768747,0.00016849,2]
[352047495,1738899051813,-532.46676158,0.00016849,2]
[352047496,1738899051931,-3244.50361761,0.00016849,2]
[352047497,1738899051943,-694.93792158,0.00016849,2]
[352047498,1738899051953,-919.12673287,0.00016849,2]
[352047499,1738899051962,-1163.77342583,0.00016855,2]
[352047500,1738899051971,-217.44674606,0.000169,2]
[352047501,1738899051981,-217.44,0.000169,2]
[352047502,1738899051991,-529.47957505,0.000169,2]
[352047503,1738899052001,-529.47957505,0.000169,2]
[352047504,1738899052010,-529.47957505,0.000169,2]
[352047505,1738899052020,-529.47957505,0.000169,2]
[352047506,1738899052030,-529.47957505,0.000169,2]
[352047507,1738899052039,-529.47957505,0.000169,2]
[352047508,1738899052048,-529.47957505,0.000169,2]
[352047509,1738899052057,-529.47957505,0.000169,2]
[352047510,1738899052066,-529.47957505,0.000169,2]
[352047511,1738899052075,-529.47957505,0.000169,2]
[352047512,1738899052084,-529.47957505,0.000169,2]
[352047513,1738899052094,-529.47957505,0.000169,2]
[352047514,1738899052103,-529.47957505,0.000169,2]
[352047515,1738899052112,-529.47957505,0.000169,2]
[352047516,1738899052122,-529.47957505,0.000169,2]
[352047517,1738899052131,-529.47957505,0.000169,2]
[352047518,1738899052140,-529.47957505,0.000169,2]
[352047519,1738899052149,-529.47957505,0.000169,2]
[352047520,1738899052159,-529.47957505,0.000169,2]
[352047521,1738899052168,-529.47,0.000169,2]
[352047522,1738899052177,-1163.77342583,0.00016955,2]
[352047523,1738899052186,-6307.07017783,0.00016967,2]
[352047524,1738899052196,-584.45,0.00016986,3]
[352047525,1738899052206,-128901.16538548,0.00017,2]
[352047526,1738899052215,-1077872.15454623,0.00017,2]
[352047527,1738899052225,-502849.44201375,0.00017,2]
[352047528,1738899052234,-151.0,0.00017,3]
[352047529,1738899052243,-52961.58686476,0.00017,20]
[352047530,1738899052253,-839.9,0.00017,2]
[352047531,1738899052262,-839.9,0.00017,2]
[352047532,1738899052272,-151.0,0.00017,2]
[352047533,1738899052281,-151.0,0.00017,2]
[352047534,1738899052290,-151.0,0.00017,2]
[352047535,1738899052299,-151.0,0.00017,2]
[352047536,1738899052308,-308.09967,0.00017,2]
[352047537,1738899052318,-308.09967,0.00017,2]
[352047538,1738899052328,-308.09967,0.00017,2]
[352047539,1738899052337,-308.09967,0.00017,2]
[352047540,1738899052347,-174.904199,0.00017,2]
[352047541,1738899052356,-174.904199,0.00017,2]
[352047542,1738899052366,-174.904199,0.00017,2]
[352047543,1738899052375,-174.904199,0.00017,2]
[352047544,1738899052385,-151.0,0.00017,2]
[352047545,1738899052394,-151.0,0.00017,2]
[352047546,1738899052403,-151.0,0.00017,2]
[352047547,1738899052413,-192.317731,0.00017,2]
[352047548,1738899052424,-537.870803,0.00017,2]
[352047549,1738899052433,-537.870803,0.00017,2]
[352047550,1738899052443,-537.870803,0.00017,2]
[352047551,1738899052453,-537.870803,0.00017,2]
[352047552,1738899052463,-151.0,0.00017,2]
[352047553,1738899052472,-151.0,0.00017,2]
[352047554,1738899052483,-155.341402,0.00017,2]
[352047555,1738899052492,-459.403262,0.00017,2]
[352047556,1738899052502,-459.403262,0.00017,2]
[352047557,1738899052512,-459.403262,0.00017,2]
[352047558,1738899052521,-459.403262,0.00017,2]
[352047559,1738899052531,-151.0,0.00017,2]
[352047560,1738899052541,-151.0,0.00017,2]
[352047561,1738899052550,-151.0,0.00017,2]
[352047562,1738899052561,-151.0,0.00017,2]
[352047563,1738899052571,-1000.0,0.00017,7]
[352047564,1738899052581,-1149.438514,0.00017,7]
[352047565,1738899052591,-264.586561,0.00017,2]
[352047566,1738899052600,-264.586561,0.00017,2]
[352047567,1738899052610,-264.586561,0.00017,2]
[352047568,1738899052620,-264.586561,0.00017,2]
[352047569,1738899052629,-151.0,0.00017,2]
[352047570,1738899052639,-151.0,0.00017,2]
[352047571,1738899052648,-151.0,0.00017,2]
[352047572,1738899052662,-152.078079,0.00017,2]
[352047573,1738899052672,-151.0,0.00017,2]
[352047574,1738899052682,-151.0,0.00017,2]
[352047575,1738899052692,-151.0,0.00017,2]
[352047576,1738899052703,-151.0,0.00017,2]
[352047577,1738899052712,-151.0,0.00017,2]
[352047578,1738899052722,-151.0,0.00017,2]
[352047579,1738899052732,-151.0,0.00017,2]
[352047580,1738899052741,-161.023721,0.00017,2]
[352047581,1738899052751,-151.0,0.00017,2]
[352047582,1738899052760,-151.0,0.00017,2]
[352047583,1738899052770,-1000.0,0.00017021,2]
[352047584,1738899052779,-1000.0,0.00017021,2]
[352047585,1738899052790,-1000.0,0.00017021,2]
[352047586,1738899052800,-1000.0,0.00017021,2]
[352047587,1738899052811,-787.51670729,0.00017021,2]
[352047588,1738899052821,-1000.0,0.00017021,2]
[352047589,1738899052831,-1000.0,0.00017021,2]
[352047590,1738899052840,-1000.0,0.00017021,2]
[352047591,1738899052850,-1163.77342583,0.00017055,2]
[352047592,1738899052859,-2000.0,0.00017078,2]
[352047593,1738899052869,-500.0,0.00017107,2]
[352047594,1738899052879,-707.0,0.00017107,2]
[352047595,1738899052888,-17971.44294956,0.00017123,4]
[352047596,1738899052898,-1163.77342583,0.00017155,2]
[352047597,1738899052907,-6307.07017783,0.000172,2]
[352047598,1738899052917,-1163.77342583,0.00017255,2]
[352047599,1738899052926,-630.73164601,0.00017285,2]
[352047600,1738899052936,-1163.77342583,0.00017355,2]
[352047601,1738899052947,-500.0,0.00017381,2]
[352047602,1738899052957,-707.0,0.00017381,2]
[352047603,1738899052967,-6307.07017783,0.00017433,2]
[352047604,1738899052976,-1163.77342583,0.00017455,2]
[352047605,1738899052986,-537.0,0.00017482,2]
[352047606,1738899052995,-1975.0,0.00017482,2]
[352047607,1738899053004,-2298.0,0.00017482,2]
[352047608,1738899053014,-396.0,0.00017482,2]
[352047609,1738899053023,-4973.42894399,0.00017483,2]
[352047610,1738899053033,-9873.61265601,0.00017485,2]
[352047611,1738899053043,-5000.0,0.00017485,2]
[352047612,1738899053052,-5000.0,0.00017485,2]
[352047613,1738899053062,-152.9584,0.00017497,2]
[352047614,1738899053071,-5064.49036165,0.00017497,2]
[352047615,1738899053081,-5000.0,0.00017497,2]
[352047616,1738899053090,-151.0,0.000175,2]
[352047617,1738899053100,-151.0,0.000175,2]
[352047618,1738899053109,-308.09967,0.000175,2]
[352047619,1738899053119,-308.09967,0.000175,2]
[352047620,1738899053128,-174.904199,0.000175,2]
[352047621,1738899053139,-174.904199,0.000175,2]
[352047622,1738899053149,-151.0,0.000175,2]
[352047623,1738899053159,-537.870803,0.000175,2]
[352047624,1738899053169,-537.870803,0.000175,2]
[352047625,1738899053178,-151.0,0.000175,2]
[352047626,1738899053189,-459.403262,0.000175,2]
[352047627,1738899053199,-459.403262,0.000175,2]
[352047628,1738899053210,-151.0,0.000175,2]
[352047629,1738899053219,-157.28292,0.000175,2]
[352047630,1738899053229,-264.586561,0.000175,2]
[352047631,1738899053238,-264.586561,0.000175,2]
[352047632,1738899053248,-151.0,0.000175,2]
[352047633,1738899053258,-151.0,0.000175,2]
[352047634,1738899053268,-151.0,0.000175,2]
[352047635,1738899053278,-151.0,0.000175,2]
[352047636,1738899053287,-520.07598247,0.000175,7]
[352047637,1738899053297,-400.7103497,0.000175,10]
[352047638,1738899053307,-294638.55927984,0.000175,2]
[352047642,1738899957114,-327.2938943,0.00013552,2]
[352047643,1738899957133,-492.54268373,0.00013664,2]
[352047644,1738900028099,-200.0,0.000136,3]
[352047645,1738900028122,-200.0,0.000136,3]
[352047646,1738900028144,-200.0,0.000136,4]
[352047647,1738900028165,-300.0,0.00013663,2]
[352047648,1738900028186,-7.45731627,0.00013664,2]
[352047649,1738900028206,-500.0,0.00013664,2]
[352047650,1738900028228,-500.0,0.00013664,2]
[352047651,1738900028248,-500.0,0.00013664,2]
[352047652,1738900028269,-500.0,0.00013664,2]
[352047653,1738900028296,-504.58523692,0.00013698,2]
[352047654,1738900028317,-497.49704487,0.00013698,2]
[352047655,1738900033199,-5.79940729,0.00013698,2]
[352047656,1738900033220,-500.97557477,0.00013698,2]
[352047657,1738900033241,-503.97084255,0.00013698,2]
[352047658,1738900033263,-503.5298211,0.00013698,2]
[352047659,1738900033284,-504.51697037,0.00013698,2]
[352047660,1738900033306,-500.0,0.00013698,2]
[352047661,1738900033327,-500.0,0.00013698,2]
[352047662,1738900033353,-500.0,0.00013698,2]
[352047663,1738900033377,-500.0,0.00013698,2]
[352047664,1738900033400,-501.67224396,0.00013698,2]
[352047665,1738900033420,-503.35887451,0.00013698,2]
[352047666,1738900033443,-500.0,0.00013698,2]
[352047667,1738900033466,-502.67363567,0.00013698,2]
[352047668,1738900033487,-500.0,0.00013698,2]
[352047669,1738900033509,-502.48141765,0.00013698,2]
[352047670,1738900033530,-109.01523026,0.00013698,2]
[352047671,1738900184259,181.01,0.00010959,2]
[352047672,1738900225837,773.0,0.00010959,2]
[352048311,1738900237967,-300.0,0.00013247,2]
[352048313,1738900237978,-707.0425425,0.00013248,2]
[352048393,1738900240035,-650.65101388,0.00013248,2]
[352048394,1738900240088,-352.863898,0.00013248,2]
[352048395,1738900240299,-3289.44254562,0.00013248,2]
[352048396,1738900240309,-500.0,0.00013248,2]
[352048397,1738900240319,-24900.0,0.00013382,2]
[352048398,1738900240328,-157.68291151,0.00013598,2]
[352048399,1738900240338,-390.98476974,0.00013698,2]
[352048400,1738900240347,-500.0,0.00013698,2]
[352048401,1738900240356,-198.68,0.00013698,3]
[352048402,1738900240365,-203.491339,0.00013699,2]
[352048403,1738900240375,-400.0,0.00013973,2]
[352048404,1738900240385,-504.47790653,0.00014095,2]
[352048405,1738900240394,-503.53720985,0.00014095,2]
[352048406,1738900240403,-503.47738624,0.00014095,2]
[352048407,1738900240413,-503.36707993,0.00014095,2]
[352048408,1738900240422,-504.68181915,0.00014095,2]
[352048409,1738900240432,-503.75153112,0.00014095,2]
[352048410,1738900240441,-500.0,0.00014095,2]
[352048411,1738900240450,-504.57696968,0.00014095,2]
[352048412,1738900240459,-503.37962008,0.00014095,2]
[352048413,1738900240469,-503.79070286,0.00014095,2]
[352048414,1738900240480,-500.0,0.00014095,2]
[352048415,1738900240490,-500.0,0.00014095,2]
[352048416,1738900240499,-500.0,0.00014095,2]
[352048417,1738900240509,-501.84326246,0.00014095,2]
[352048418,1738900240519,-501.01222552,0.00014095,2]
[352048419,1738900240530,-205.51373158,0.0001423,2]
[352048420,1738900240539,-500.0,0.00014232,2]
[352048421,1738900240549,-500.0,0.00014232,2]
[352048422,1738900240559,-500.0,0.00014369,2]
[352048423,1738900240568,-500.0,0.00014369,2]
[352048424,1738900240578,-1128.48,0.000145,2]
[352048425,1738900240589,-500.0,0.00014506,2]
[352048426,1738900240599,-500.0,0.00014506,2]
[352048427,1738900240611,-420.0,0.00014524,2]
[352048428,1738900240621,-826.24040444,0.00014581,2]
[352048429,1738900240631,-500.0,0.00014643,2]
[352048430,1738900240640,-826.24040444,0.00014681,2]
[352048431,1738900240649,-506.0,0.000147,5]
[352048432,1738900240659,-150.0,0.00014732,2]
[352048433,1738900240669,-537.0,0.00014732,2]
[352048434,1738900240679,-1975.0,0.00014732,2]
[352048435,1738900240689,-2298.0,0.00014732,2]
[352048436,1738900240699,-500.0,0.0001478,2]
[352048437,1738900240708,-826.24040444,0.00014781,2]
[352048438,1738900240718,-826.24040444,0.00014881,2]
[352048439,1738900240727,-500.0,0.00014916,2]
[352048440,1738900240738,-500.0,0.00014941,2]